fUSD/lending_fUSD_20241223
["ID","MTS","AMOUNT","RATE_DAILY","PERIOD"]
[346401507,1734941440536,-500.0,0.00019178,2]
[346401510,1734941440546,-743.38,0.00019178,2]
[346401512,1734941440555,-500.0,0.00019178,2]
[346401514,1734941440566,-500.0,0.00019178,2]
[346401516,1734941440575,-500.0,0.00019178,2]
[346401517,1734941440584,-557.33000717,0.00019178,2]
[346401519,1734941440593,-500.0,0.00019178,2]
[346401521,1734941440603,-500.0,0.00019178,2]
[346401523,1734941440612,-696.86,0.00019178,2]
[346401525,1734941440622,-1137.67,0.00019178,2]
[346401528,1734941440631,-500.0,0.00019178,2]
[346401529,1734941440640,-500.0,0.00019178,2]
[346401531,1734941440649,-942.55,0.00019178,2]
[346401533,1734941440658,-867.89,0.00019178,2]
[346401535,1734941440667,-1180.62,0.00019178,2]
[346401537,1734941440676,-636.99,0.00019178,2]
[346401539,1734941440686,-500.0,0.00019178,2]
[346401541,1734941440695,-500.0,0.00019178,2]
[346401543,1734941440704,-500.0,0.00019178,2]
[346401545,1734941440713,-500.0,0.00019178,2]
[346401547,1734941440722,-500.0,0.00019178,2]
[346401549,1734941440731,-560.76,0.00019178,2]
[346401551,1734941440741,-500.0,0.00019178,2]
[346401553,1734941440750,-1145.95,0.00019178,2]
[346401555,1734941440759,-8196.6,0.00019178,2]
[346401557,1734941440768,-1188.33,0.00019178,2]
[346401559,1734941440777,-1247.88,0.00019178,2]
[346401561,1734941440786,-1592.82,0.00019178,2]
[346401563,1734941440796,-500.0,0.00019178,2]
[346401565,1734941440804,-1781.71,0.00019178,2]
[346401567,1734941440814,-500.0,0.00019178,2]
[346401569,1734941440823,-786.02,0.00019178,2]
[346401571,1734941440836,-500.0,0.00019178,2]
[346401573,1734941440846,-1048.44,0.00019178,2]
[346401575,1734941440855,-500.0,0.00019178,2]
[346401577,1734941440864,-500.0,0.00019178,2]
[346401579,1734941440875,-871.32,0.00019178,2]
[346401581,1734941440884,-1134.65,0.00019178,2]
[346401583,1734941440893,-797.28,0.00019178,2]
[346401585,1734941440902,-1382.88,0.00019178,2]
[346401587,1734941440912,-500.0,0.00019178,2]
[346401589,1734941440921,-968.31,0.00019178,2]
[346401591,1734941440930,-649.81,0.00019178,2]
[346401593,1734941440939,-500.0,0.00019178,2]
[346401595,1734941440948,-897.39,0.00019178,2]
[346401597,1734941440957,-500.0,0.00019178,2]
[346401599,1734941440966,-1967.2,0.00019178,2]
[346401601,1734941440975,-500.0,0.00019178,2]
[346401603,1734941440985,-870.59,0.00019178,2]
[346401605,1734941440994,-500.0,0.00019178,2]
[346401607,1734941441003,-500.0,0.00019178,2]
[346401609,1734941441013,-754.37,0.00019178,2]
[346401611,1734941441022,-1274.96,0.00019178,2]
[346401612,1734941441031,-3071.8,0.00019178,2]
[346401614,1734941441040,-500.0,0.00019178,2]
[346401616,1734941441049,-500.0,0.00019178,2]
[346401618,1734941441058,-1457.59,0.00019178,2]
[346401621,1734941441070,-500.0,0.00019178,2]
[346401622,1734941441079,-500.0,0.00019178,2]
[346401625,1734941441088,-1710.91,0.00019178,2]
[346401627,1734941441097,-736.98,0.00019178,2]
[346401629,1734941441106,-705.49,0.00019178,2]
[346401631,1734941441116,-1359.24,0.00019178,2]
[346401633,1734941441125,-1420.87,0.00019178,2]
[346401635,1734941441135,-1387.94,0.00019178,2]
[346401637,1734941441143,-1795.47,0.00019178,2]
[346401639,1734941441153,-1611.06,0.00019178,2]
[346401641,1734941441162,-2018.15,0.00019178,2]
[346401643,1734941441171,-582.99,0.00019178,2]
[346401645,1734941441180,-500.0,0.00019178,2]
[346401647,1734941441190,-735.15,0.00019178,2]
[346401649,1734941441199,-500.0,0.00019178,2]
[346401651,1734941441207,-2412.67,0.00019178,2]
[346401653,1734941441217,-2523.55,0.00019178,2]
[346401655,1734941441226,-2454.69,0.00019178,2]
[346401657,1734941441235,-3460.86,0.00019178,2]
[346401659,1734941441244,-8681.5,0.00019178,2]
[346401661,1734941441253,-702.9,0.00019178,2]
[346401663,1734941441262,-500.0,0.00019178,2]
[346401665,1734941441271,-500.0,0.00019178,2]
[346401667,1734941441281,-25285.75,0.00019178,2]
[346401669,1734941441290,-1525.48,0.00019178,2]
[346401670,1734941441299,-708.3,0.00019178,2]
[346401672,1734941441309,-1767.32,0.00019178,2]
[346401674,1734941441320,-1021.08,0.00019178,2]
[346401677,1734941441330,-500.0,0.00019178,2]
[346401678,1734941441339,-504.54,0.00019178,2]
[346401680,1734941441348,-500.0,0.00019178,2]
[346401683,1734941441358,-2855.65,0.00019178,2]
[346401684,1734941441367,-2081.17,0.00019178,2]
[346401686,1734941441376,-11354.91,0.00019178,2]
[346401688,1734941441385,-1010.96,0.00019178,2]
[346401690,1734941441394,-2208.2,0.00019178,2]
[346401692,1734941441403,-500.0,0.00019178,2]
[346401694,1734941441412,-6534.51,0.00019178,2]
[346401696,1734941441422,-1218.65,0.00019178,2]
[346401698,1734941441431,-500.0,0.00019178,2]
[346401700,1734941441440,-1559.9,0.00019178,2]
[346401702,1734941441449,-981.31,0.00019178,2]
[346401704,1734941441458,-1164.31,0.00019178,2]
[346401706,1734941441467,-715.37,0.00019178,2]
[346401708,1734941441477,-672.1,0.00019178,2]
[346401710,1734941441486,-500.0,0.00019178,2]
[346401712,1734941441495,-550.19,0.00019178,2]
[346401714,1734941441504,-2226.09,0.00019178,2]
[346401716,1734941441515,-6002.25,0.00019178,2]
[346401718,1734941441523,-1427.02,0.00019178,2]
[346401720,1734941441532,-1602.29,0.00019178,2]
[346401722,1734941441542,-500.0,0.00019178,2]
[346401724,1734941441551,-500.0,0.00019178,2]
[346401726,1734941441560,-569.31,0.00019178,2]
[346401728,1734941441570,-1072.36,0.00019178,2]
[346401730,1734941441579,-500.0,0.00019178,2]
[346401732,1734941441588,-500.0,0.00019178,2]
[346401734,1734941441598,-1507.98,0.00019178,2]
[346401735,1734941441607,-500.0,0.00019178,2]
[346401736,1734941441617,-4141.75,0.00019178,2]
[346401737,1734941441627,-988.4,0.00019178,2]
[346401738,1734941441636,-1947.9,0.00019178,2]
[346401739,1734941441645,-500.0,0.00019178,2]
[346401740,1734941441654,-247.91185152,0.00019178,2]
[346401741,1734941441664,-500.0,0.00019178,2]
[346401742,1734941441673,-2882.27,0.00019178,2]
[346401743,1734941441682,-982.76,0.00019178,2]
[346401744,1734941441691,-2945.48,0.00019178,2]
[346401745,1734941441700,-305.77837269,0.00019178,2]
[346401746,1734941441710,-2000.0,0.00019178,15]
[346401747,1734941441719,-1561.41,0.00019178,2]
[346401748,1734941441728,-956.17,0.00019178,2]
[346401749,1734941441738,-2541.47,0.00019178,2]
[346401750,1734941441747,-503.72396272,0.00019178,2]
[346401751,1734941441757,-500.0,0.00019178,2]
[346401752,1734941441766,-1058.97,0.00019178,2]
[346401753,1734941441775,-1137.34,0.00019178,2]
[346401754,1734941441784,-500.0,0.00019178,2]
[346401755,1734941441794,-1780.44,0.00019178,2]
[346401756,1734941441804,-512.64,0.00019178,2]
[346401757,1734941441813,-1189.67,0.00019178,2]
[346401758,1734941441825,-1694.66,0.00019178,2]
[346401759,1734941441834,-2620.38,0.00019178,2]
[346401760,1734941441848,-2661.39,0.00019178,2]
[346401761,1734941441857,-500.0,0.00019178,2]
[346401762,1734941441867,-500.0,0.00019178,2]
[346401763,1734941441876,-926.47,0.00019178,2]
[346401764,1734941441886,-500.0,0.00019178,2]
[346401765,1734941441895,-546.00733393,0.00019178,2]
[346401766,1734941441904,-1957.1,0.00019178,2]
[346401767,1734941441914,-500.0,0.00019178,2]
[346401768,1734941441923,-500.0,0.00019178,2]
[346401769,1734941441932,-1395.47,0.00019178,2]
[346401770,1734941441941,-15376.23,0.00019178,2]
[346401771,1734941441950,-3918.47,0.00019178,2]
[346401772,1734941441959,-2337.46,0.00019178,2]
[346401773,1734941441968,-859.52,0.00019178,2]
[346401774,1734941441977,-500.0,0.00019178,2]
[346401775,1734941441986,-547.55,0.00019178,2]
[346401776,1734941441995,-3490.27,0.00019178,2]
[346401777,1734941442005,-586.07,0.00019178,2]
[346401778,1734941442014,-1764.69,0.00019178,2]
[346401779,1734941442023,-782.78,0.00019178,2]
[346401780,1734941442034,-3834.3,0.00019178,2]
[346401781,1734941442043,-500.0,0.00019178,2]
[346401782,1734941442053,-500.0,0.00019178,2]
[346401783,1734941442064,-500.0,0.00019178,2]
[346401784,1734941442073,-3480.14,0.00019178,2]
[346401785,1734941442082,-1487.46,0.00019178,2]
[346401786,1734941442091,-500.0,0.00019178,2]
[346401787,1734941442101,-3666.38,0.00019178,2]
[346401788,1734941442110,-950.14,0.00019178,2]
[346401789,1734941442119,-500.0,0.00019178,2]
[346401790,1734941442128,-855.9,0.00019178,2]
[346401791,1734941442137,-500.0,0.00019178,2]
[346401792,1734941442146,-500.0,0.00019178,2]
[346401794,1734941442155,-500.0,0.00019178,2]
[346401796,1734941442164,-500.0,0.00019178,2]
[346401797,1734941442173,-3690.7,0.00019178,2]
[346401799,1734941442182,-1258.57,0.00019178,2]
[346401801,1734941442191,-500.0,0.00019178,2]
[346401803,1734941442200,-500.0,0.00019178,2]
[346401804,1734941442209,-897.56,0.00019178,2]
[346401805,1734941442219,-7845.26,0.00019178,2]
[346401806,1734941442228,-500.0,0.00019178,2]
[346401807,1734941442237,-687.74,0.00019178,2]
[346401808,1734941442247,-500.0,0.00019178,2]
[346401809,1734941442256,-500.0,0.00019178,2]
[346401810,1734941442265,-7597.35,0.00019178,2]
[346401811,1734941442274,-500.0,0.00019178,2]
[346401812,1734941442284,-1760.16,0.00019178,2]
[346401813,1734941442293,-919.34,0.00019178,2]
[346401814,1734941442302,-1109.62,0.00019178,2]
[346401815,1734941442311,-919.68,0.00019178,2]
[346401816,1734941442321,-1068.46,0.00019178,2]
[346401817,1734941442331,-504.12720034,0.00019178,2]
[346401818,1734941442340,-500.0,0.00019178,2]
[346401819,1734941442350,-2720.73,0.00019178,2]
[346401820,1734941442359,-640.56,0.00019178,2]
[346401821,1734941442368,-500.0,0.00019178,2]
[346401822,1734941442377,-946.5,0.00019178,2]
[346401823,1734941442387,-683.08,0.00019178,2]
[346401824,1734941442396,-500.0,0.00019178,2]
[346401825,1734941442405,-500.0,0.00019178,2]
[346401826,1734941442414,-500.0,0.00019178,2]
[346401828,1734941442423,-500.0,0.00019178,2]
[346401829,1734941442432,-500.0,0.00019178,2]
[346401830,1734941442440,-1621.87,0.00019178,2]
[346401831,1734941442450,-858.36,0.00019178,2]
[346401832,1734941442459,-1085.78,0.00019178,2]
[346401833,1734941442468,-4000.0,0.00019178,2]
[346401834,1734941442478,-201.87,0.00019178,2]
[346401835,1734941442488,-2171.15458092,0.00019258,2]
[346401836,1734941442497,-1701.88344901,0.00019258,2]
[346401837,1734941442507,-171.96652563,0.00019288,2]
[346401838,1734941442517,-154.62366545,0.00019319,2]
[346401839,1734941442526,-2171.15458092,0.00019348,2]
[346401840,1734941442535,-1701.88344901,0.00019348,2]
[346401841,1734941442544,-27708.5115,0.00019352,2]
[346401842,1734941442554,-2171.15458092,0.00019438,2]
[346401843,1734941442565,-1701.88344901,0.00019438,2]
[346401844,1734941442576,-150.122316,0.00019447,3]
[346401845,1734941442586,-150.122316,0.00019447,3]
[346401846,1734941442595,-150.122316,0.00019447,3]
[346401847,1734941442606,-150.122316,0.00019447,2]
[346401848,1734941442616,-150.122316,0.00019447,2]
[346401849,1734941442626,-150.122316,0.00019447,2]
[346401850,1734941442635,-150.122316,0.00019448,2]
[346401851,1734941442645,-150.122316,0.00019448,2]
[346401852,1734941442654,-150.122316,0.00019448,2]
[346401853,1734941442663,-150.122316,0.00019448,3]
[346401854,1734941442673,-150.122316,0.00019448,3]
[346401855,1734941442682,-150.122316,0.00019448,3]
[346401856,1734941442693,-1359.24,0.0001945,2]
[346401858,1734941442702,-152.52115859,0.00019451,2]
[346401860,1734941442711,-1344.2,0.00019451,2]
[346401862,1734941442720,-1359.24,0.00019451,2]
[346401864,1734941442730,-500.0,0.00019452,2]
[346401866,1734941442739,-500.0,0.00019452,2]
[346401868,1734941442749,-500.0,0.00019452,2]
[346401871,1734941442758,-500.0,0.00019452,2]
[346401874,1734941442767,-500.0,0.00019452,2]
[346401877,1734941442777,-500.0,0.00019452,2]
[346401879,1734941442786,-500.0,0.00019452,2]
[346401882,1734941442795,-500.0,0.00019452,2]
[346401884,1734941442804,-335.27186232,0.00019452,2]
[346401886,1734941442815,-500.0,0.00019452,2]
[346401888,1734941442824,-500.0,0.00019452,2]
[346401889,1734941442834,-500.0,0.00019452,2]
[346401891,1734941442846,-500.0,0.00019452,2]
[346401893,1734941442855,-500.0,0.00019452,2]
[346401894,1734941442864,-500.0,0.00019452,2]
[346401896,1734941442874,-500.0,0.00019452,2]
[346401898,1734941442885,-500.0,0.00019452,2]
[346401900,1734941442894,-500.0,0.00019452,2]
[346401901,1734941442904,-510.73786098,0.00019452,2]
[346401903,1734941442915,-739.32,0.00019452,2]
[346401905,1734941442925,-500.0,0.00019452,2]
[346401907,1734941442934,-500.0,0.00019452,2]
[346401909,1734941442943,-500.0,0.00019452,2]
[346401910,1734941442952,-700.99,0.00019452,2]
[346401912,1734941442962,-500.0,0.00019452,2]
[346401913,1734941442971,-500.0,0.00019452,2]
[346401914,1734941442980,-500.0,0.00019452,2]
[346401915,1734941442989,-500.0,0.00019452,2]
[346401916,1734941442998,-500.0,0.00019452,2]
[346401917,1734941443008,-500.0,0.00019452,2]
[346401919,1734941443017,-615.16,0.00019452,2]
[346401920,1734941443026,-500.0,0.00019452,2]
[346401921,1734941443036,-500.0,0.00019452,2]
[346401922,1734941443045,-543.27,0.00019452,2]
[346401923,1734941443054,-500.0,0.00019452,2]
[346401924,1734941443064,-500.0,0.00019452,2]
[346401925,1734941443074,-500.0,0.00019452,2]
[346401926,1734941443083,-500.0,0.00019452,2]
[346401927,1734941443092,-500.0,0.00019452,2]
[346401928,1734941443102,-500.0,0.00019452,2]
[346401929,1734941443111,-500.0,0.00019452,2]
[346401930,1734941443120,-817.63,0.00019452,2]
[346401931,1734941443130,-500.0,0.00019452,2]
[346401932,1734941443139,-500.0,0.00019452,2]
[346401933,1734941443148,-500.0,0.00019452,2]
[346401934,1734941443158,-500.0,0.00019452,2]
[346401935,1734941443167,-500.0,0.00019452,2]
[346401936,1734941443176,-500.0,0.00019452,2]
[346401937,1734941443185,-500.0,0.00019452,2]
[346401938,1734941443195,-500.0,0.00019452,2]
[346401939,1734941443204,-500.0,0.00019452,2]
[346401940,1734941443213,-500.0,0.00019452,2]
[346401941,1734941443223,-500.0,0.00019452,2]
[346401942,1734941443232,-500.0,0.00019452,2]
[346401943,1734941443241,-660.32,0.00019452,2]
[346401944,1734941443250,-576.55,0.00019452,2]
[346401945,1734941443259,-500.0,0.00019452,2]
[346401946,1734941443268,-500.0,0.00019452,2]
[346401947,1734941443278,-500.0,0.00019452,2]
[346401948,1734941443287,-500.0,0.00019452,2]
[346401949,1734941443296,-500.0,0.00019452,2]
[346401950,1734941443306,-500.0,0.00019452,2]
[346401951,1734941443315,-565.18428051,0.00019452,2]
[346401952,1734941443323,-500.0,0.00019452,2]
[346401953,1734941443333,-500.0,0.00019452,2]
[346401954,1734941443342,-544.69860096,0.00019452,2]
[346401955,1734941443351,-500.0,0.00019452,2]
[346401956,1734941443360,-500.0,0.00019452,2]
[346401957,1734941443370,-500.0,0.00019452,2]
[346401958,1734941443379,-500.0,0.00019452,2]
[346401959,1734941443387,-500.0,0.00019452,2]
[346401960,1734941443397,-721.54,0.00019452,2]
[346401961,1734941443406,-718.59,0.00019452,2]
[346401962,1734941443415,-500.0,0.00019452,2]
[346401963,1734941443424,-500.0,0.00019452,2]
[346401964,1734941443433,-500.0,0.00019452,2]
[346401965,1734941443442,-500.0,0.00019452,2]
[346401966,1734941443451,-500.0,0.00019452,2]
[346401967,1734941443460,-206.84865177,0.00019452,2]
[346401968,1734941443470,-500.0,0.00019452,2]
[346401969,1734941443479,-500.0,0.00019452,2]
[346401970,1734941443488,-500.0,0.00019452,2]
[346401971,1734941443498,-500.0,0.00019452,2]
[346401972,1734941443507,-500.0,0.00019452,2]
[346401973,1734941443516,-500.0,0.00019452,2]
[346401974,1734941443525,-500.0,0.00019452,2]
[346401975,1734941443535,-830.25,0.00019452,2]
[346401976,1734941443544,-500.0,0.00019452,2]
[346401977,1734941443553,-500.0,0.00019452,2]
[346401978,1734941443563,-509.61623406,0.00019452,2]
[346401979,1734941443573,-500.0,0.00019452,2]
[346401980,1734941443582,-699.69,0.00019452,2]
[346401981,1734941443591,-500.0,0.00019452,2]
[346401982,1734941443600,-500.0,0.00019452,2]
[346401983,1734941443609,-500.0,0.00019452,2]
[346401984,1734941443618,-500.0,0.00019452,2]
[346401985,1734941443627,-612.13,0.00019452,2]
[346401986,1734941443636,-500.0,0.00019452,2]
[346401987,1734941443645,-500.0,0.00019452,2]
[346401988,1734941443654,-500.0,0.00019452,2]
[346401989,1734941443663,-509.96236925,0.00019452,2]
[346401990,1734941443672,-500.0,0.00019452,2]
[346401991,1734941443682,-500.0,0.00019452,2]
[346401992,1734941443691,-500.0,0.00019452,2]
[346401993,1734941443699,-500.0,0.00019452,2]
[346401994,1734941443708,-500.0,0.00019452,2]
[346401995,1734941443717,-500.0,0.00019452,2]
[346401996,1734941443726,-500.0,0.00019452,2]
[346401997,1734941443735,-500.0,0.00019452,2]
[346401998,1734941443744,-500.0,0.00019452,2]
[346401999,1734941443753,-500.0,0.00019452,2]
[346402000,1734941443762,-500.0,0.00019452,2]
[346402001,1734941443771,-500.0,0.00019452,2]
[346402002,1734941443781,-500.0,0.00019452,2]
[346402003,1734941443791,-500.0,0.00019452,2]
[346402004,1734941443800,-156.79541693,0.00019452,2]
[346402005,1734941443810,-472.21510062,0.00019452,2]
[346402006,1734941443819,-508.15087298,0.00019452,2]
[346402007,1734941443828,-500.0,0.00019452,2]
[346402008,1734941443842,-500.0,0.00019452,2]
[346402009,1734941443851,-500.0,0.00019452,2]
[346402010,1734941443861,-500.0,0.00019452,2]
[346402011,1734941443870,-500.0,0.00019452,2]
[346402012,1734941443879,-633.94,0.00019452,2]
[346402013,1734941443888,-469.26276172,0.00019452,2]
[346402014,1734941443897,-613.04,0.00019452,2]
[346402015,1734941443907,-500.0,0.00019452,2]
[346402016,1734941443917,-500.0,0.00019452,2]
[346402017,1734941443926,-500.0,0.00019452,2]
[346402018,1734941443936,-500.0,0.00019452,2]
[346402019,1734941443945,-500.0,0.00019452,2]
[346402020,1734941443954,-500.0,0.00019452,2]
[346402021,1734941443964,-500.0,0.00019452,2]
[346402022,1734941443973,-500.0,0.00019452,2]
[346402023,1734941443983,-1305.667692,0.00019452,2]
[346402024,1734941443993,-500.0,0.00019452,2]
[346402025,1734941444002,-500.0,0.00019452,2]
[346402026,1734941444012,-500.0,0.00019452,2]
[346402027,1734941444022,-649.87,0.00019452,2]
[346402028,1734941444031,-500.0,0.00019452,2]
[346402029,1734941444040,-1056.511104,0.00019452,2]
[346402030,1734941444050,-500.0,0.00019452,2]
[346402031,1734941444059,-877.95,0.00019452,2]
[346402032,1734941444244,-906.98,0.00019452,2]
[346402033,1734941444253,-500.0,0.00019452,2]
[346402034,1734941444262,-500.0,0.00019452,2]
[346402035,1734941444272,-500.0,0.00019452,2]
[346402036,1734941444281,-500.0,0.00019452,2]
[346402037,1734941444291,-595.14,0.00019452,2]
[346402038,1734941444300,-1086.11,0.00019452,2]
[346402039,1734941444309,-500.0,0.00019452,2]
[346402040,1734941444319,-500.0,0.00019452,2]
[346402041,1734941444328,-500.0,0.00019452,2]
[346402042,1734941444337,-500.0,0.00019452,2]
[346402043,1734941444347,-804.32,0.00019452,2]
[346402044,1734941444356,-863.3,0.00019452,2]
[346402045,1734941444366,-500.0,0.00019452,2]
[346402046,1734941444376,-500.0,0.00019452,2]
[346402047,1734941444385,-500.0,0.00019452,2]
[346402048,1734941444395,-524.03,0.00019452,2]
[346402049,1734941444404,-500.0,0.00019452,2]
[346402050,1734941444414,-500.0,0.00019452,2]
[346402051,1734941444423,-500.0,0.00019452,2]
[346402052,1734941444432,-500.0,0.00019452,2]
[346402053,1734941444442,-636.9,0.00019452,2]
[346402054,1734941444452,-500.0,0.00019452,2]
[346402055,1734941444461,-500.0,0.00019452,2]
[346402056,1734941444470,-500.0,0.00019452,2]
[346402057,1734941444480,-500.0,0.00019452,2]
[346402058,1734941444489,-911.26,0.00019452,2]
[346402059,1734941444498,-500.0,0.00019452,2]
[346402060,1734941444507,-970.06,0.00019452,2]
[346402061,1734941444516,-500.0,0.00019452,2]
[346402062,1734941444526,-500.0,0.00019452,2]
[346402063,1734941444535,-500.0,0.00019452,2]
[346402064,1734941444545,-500.0,0.00019452,2]
[346402065,1734941444554,-500.0,0.00019452,2]
[346402066,1734941444564,-687.87,0.00019452,2]
[346402067,1734941444574,-500.0,0.00019452,2]
[346402068,1734941444584,-500.0,0.00019452,2]
[346402069,1734941444593,-966.44,0.00019452,2]
[346402070,1734941444602,-788.0,0.00019452,2]
[346402071,1734941444611,-849.02,0.00019452,2]
[346402072,1734941444621,-365.57886111,0.00019452,2]
[346402073,1734941444631,-644.77,0.00019452,2]
[346402074,1734941444641,-500.0,0.00019452,2]
[346402075,1734941444651,-500.0,0.00019452,2]
[346402076,1734941444660,-500.0,0.00019452,2]
[346402077,1734941444670,-827.44,0.00019452,2]
[346402078,1734941444680,-500.0,0.00019452,2]
[346402079,1734941444689,-500.0,0.00019452,2]
[346402080,1734941444698,-500.0,0.00019452,2]
[346402081,1734941444707,-500.0,0.00019452,2]
[346402082,1734941444716,-500.0,0.00019452,2]
[346402083,1734941444726,-1399.26,0.00019452,2]
[346402084,1734941444735,-743.38,0.00019452,2]
[346402085,1734941444744,-500.0,0.00019452,2]
[346402086,1734941444753,-500.0,0.00019452,2]
[346402087,1734941444763,-500.0,0.00019452,2]
[346402088,1734941444772,-500.0,0.00019452,2]
[346402089,1734941444781,-500.0,0.00019452,2]
[346402090,1734941444791,-696.86,0.00019452,2]
[346402091,1734941444800,-1137.67,0.00019452,2]
[346402092,1734941444810,-500.0,0.00019452,2]
[346402093,1734941444820,-500.0,0.00019452,2]
[346402094,1734941444829,-942.55,0.00019452,2]
[346402095,1734941444841,-1180.62,0.00019452,2]
[346402096,1734941444851,-867.89,0.00019452,2]
[346402097,1734941444860,-636.99,0.00019452,2]
[346402098,1734941444870,-18523.49755147,0.00019452,2]
[346402099,1734941444880,-500.0,0.00019452,2]
[346402100,1734941444889,-500.0,0.00019452,2]
[346402101,1734941444898,-500.0,0.00019452,2]
[346402102,1734941444908,-500.0,0.00019452,2]
[346402103,1734941444917,-560.76,0.00019452,2]
[346402104,1734941444926,-508.39645071,0.00019452,2]
[346402105,1734941444935,-500.0,0.00019452,2]
[346402106,1734941444944,-1145.95,0.00019452,2]
[346402107,1734941444953,-8196.6,0.00019452,2]
[346402108,1734941444962,-1188.33,0.00019452,2]
[346402109,1734941444971,-1247.88,0.00019452,2]
[346402110,1734941444980,-1592.82,0.00019452,2]
[346402111,1734941444989,-500.0,0.00019452,2]
[346402112,1734941444999,-1781.71,0.00019452,2]
[346402113,1734941445008,-500.0,0.00019452,2]
[346402114,1734941445017,-786.02,0.00019452,2]
[346402115,1734941445027,-500.0,0.00019452,2]
[346402116,1734941445036,-1048.44,0.00019452,2]
[346402117,1734941445045,-500.0,0.00019452,2]
[346402118,1734941445054,-871.32,0.00019452,2]
[346402119,1734941445063,-1134.65,0.00019452,2]
[346402120,1734941445074,-797.28,0.00019452,2]
[346402121,1734941445083,-1382.88,0.00019452,2]
[346402122,1734941445092,-968.31,0.00019452,2]
[346402123,1734941445102,-649.81,0.00019452,2]
[346402124,1734941445111,-613.16356296,0.00019452,2]
[346402125,1734941445120,-897.39,0.00019452,2]
[346402126,1734941445129,-500.0,0.00019452,2]
[346402127,1734941445139,-500.0,0.00019452,2]
[346402128,1734941445148,-1967.2,0.00019452,2]
[346402129,1734941445158,-870.59,0.00019452,2]
[346402130,1734941445167,-500.0,0.00019452,2]
[346402131,1734941445176,-500.0,0.00019452,2]
[346402132,1734941445186,-754.37,0.00019452,2]
[346402133,1734941445195,-1274.96,0.00019452,2]
[346402134,1734941445205,-3071.8,0.00019452,2]
[346402135,1734941445215,-500.0,0.00019452,2]
[346402136,1734941445224,-500.0,0.00019452,2]
[346402137,1734941445234,-1457.59,0.00019452,2]
[346402138,1734941445243,-500.0,0.00019452,2]
[346402139,1734941445253,-500.0,0.00019452,2]
[346402140,1734941445263,-1710.91,0.00019452,2]
[346402141,1734941445272,-736.98,0.00019452,2]
[346402142,1734941445282,-705.49,0.00019452,2]
[346402143,1734941445291,-1420.87,0.00019452,2]
[346402144,1734941445303,-1387.94,0.00019452,2]
[346402146,1734941445312,-1795.47,0.00019452,2]
[346402148,1734941445323,-1611.06,0.00019452,2]
[346402150,1734941445333,-2018.15,0.00019452,2]
[346402152,1734941445343,-500.0,0.00019452,2]
[346402153,1734941445352,-735.15,0.00019452,2]
[346402155,1734941445362,-500.0,0.00019452,2]
[346402156,1734941445371,-2412.67,0.00019452,2]
[346402157,1734941445381,-582.99,0.00019452,2]
[346402158,1734941445392,-2523.55,0.00019452,2]
[346402159,1734941445402,-2454.69,0.00019452,2]